bitfinex/quotes_SOLUSD_20230701
["timestamp","ask_amount","ask_price","bid_price","bid_amount"]
[1688187261270,55.0,18.075,18.064,23.415]
[1688187261561,23.406,18.072,18.064,23.415]
[1688187267468,13.5835217,18.074,18.064,23.415]
[1688187268169,36.9865217,18.074,18.064,23.415]
[1688187271170,13.5835217,18.074,18.064,23.415]
[1688187271766,36.9865217,18.074,18.064,23.415]
[1688187272366,36.9865217,18.074,18.061,92.1911]
[1688187272367,55.0,18.073,18.062,23.418]
[1688187272551,23.409,18.07,18.062,23.418]
[1688187272753,23.409,18.07,18.061,92.1911]
[1688187273073,36.95505924,18.068,18.06,23.42]
[1688187275572,13.54305924,18.068,18.06,23.42]
[1688187276677,36.95005924,18.071,18.06,23.42]
[1688187276976,55.0,18.07,18.06,23.42]
[1688187277165,13.54305924,18.069,18.06,23.42]
[1688187281373,13.54305924,18.067,18.06,23.42]
[1688187281557,13.54305924,18.068,18.06,23.42]
[1688187281752,14.34074551,18.069,18.06,23.42]
[1688187285978,37.75074551,18.069,18.06,23.42]
[1688187286476,14.34074551,18.069,18.06,23.42]
[1688187287063,37.75174551,18.069,18.06,23.42]
[1688187287264,14.34074551,18.069,18.06,23.42]
[1688187287464,23.414,18.066,18.059,23.423]
[1688187287677,55.0,18.065,18.059,23.423]
[1688187288062,55.0,18.065,18.053,60.32]
[1688187288063,23.416,18.064,18.057,23.424]
[1688187288575,55.0,18.063,18.057,23.424]
[1688187289378,23.415,18.065,18.057,23.424]
[1688187289583,55.0,18.064,18.057,23.424]
[1688187291186,23.415,18.065,18.057,23.424]
[1688187294775,23.413,18.067,18.057,23.424]
[1688187295076,11.69442771,18.066,18.057,23.424]
[1688187295663,16.09191226,18.068,18.057,23.424]
[1688187295985,23.406,18.073,18.061,23.42]
[1688187296678,26.78609021,18.072,18.061,23.42]
[1688187299494,50.19209021,18.072,18.061,23.42]
[1688187301195,55.0,18.071,18.059,23.422]
[1688187301490,23.412,18.068,18.06,20.0]
[1688187301677,115.264,18.071,18.06,20.0]
[1688187301678,55.0,18.067,18.06,43.421]
[1688187301874,10.14913555,18.066,18.06,43.421]
[1688187302274,23.407,18.072,18.06,43.421]
[1688187302275,10.96144926,18.071,18.06,43.421]
[1688187305088,10.96144926,18.071,18.061,55.0]
[1688187305390,51.35522984,18.075,18.064,23.416]
[1688187305587,19.53670102,18.074,18.064,23.416]
[1688187306595,42.94070102,18.074,18.064,23.416]
[1688187308003,55.0,18.073,18.064,23.416]
[1688187308180,42.94270102,18.072,18.064,23.416]
[1688187311703,55.0,18.071,18.064,23.416]
[1688187311994,78.408,18.071,18.062,23.418]
[1688187312178,10.15291792,18.07,18.062,23.418]
[1688187312579,23.414,18.066,18.054,60.318]
[1688187312983,55.0,18.065,18.056,23.425]
[1688187313488,78.416,18.065,18.056,23.425]
[1688187313893,78.416,18.065,18.05,60.33]
[1688187314085,23.42383437,18.064,18.05,60.33]
[1688187314294,23.42,18.061,18.051,23.432]
[1688187314490,55.0,18.06,18.051,23.432]
[1688187315394,78.422,18.06,18.051,23.432]
[1688187315985,11.16492642,18.059,18.051,23.432]
[1688187316184,78.424,18.058,18.051,23.432]
[1688187316404,23.424,18.058,18.051,23.432]
[1688187316695,78.426,18.057,18.041,87.88051996]
[1688187316898,15.85872376,18.056,18.046,23.439]
[1688187317095,23.43,18.054,18.046,23.439]
[1688187317298,23.435,18.05,18.042,23.444]
[1688187317499,16.55142798,18.054,18.042,23.444]
[1688187317801,55.0,18.053,18.042,23.444]
[1688187319795,78.431,18.053,18.042,23.444]
[1688187320098,55.0,18.052,18.042,23.444]
[1688187320499,78.432,18.052,18.042,23.444]
[1688187322910,12.92418514,18.051,18.042,23.444]
[1688187323105,78.435,18.05,18.042,23.444]
[1688187323308,23.435,18.05,18.042,23.444]
[1688187323497,55.0,18.049,18.042,23.444]
[1688187325911,78.435,18.05,18.042,23.444]
[1688187327301,55.0,18.05,18.042,23.444]
[1688187327805,78.433,18.051,18.042,23.444]
[1688187328209,78.433,18.051,18.036,60.377]
[1688187328504,37.30666363,18.05,18.032,114.0632]
[1688187328814,83.791,18.045,18.032,90.6062]
[1688187329113,83.791,18.045,18.03,23.459]
[1688187329314,83.791,18.045,18.004,57.2479352]
[1688187329315,94.28936974,18.044,18.02,60.43]
[1688187329510,23.452,18.037,18.026,23.465]
[1688187329811,23.457,18.033,18.025,23.466]
[1688187330001,55.0,18.032,18.025,20.466]
[1688187330197,60.377,18.037,18.025,20.466]
[1688187330400,55.0,18.036,18.025,23.466]
[1688187330599,23.454,18.035,18.025,23.466]
[1688187330805,55.0,18.034,18.025,23.466]
[1688187331009,110.143,18.041,18.025,23.466]
[1688187331010,23.45,18.039,18.025,23.466]
[1688187331208,23.448,18.04,18.026,20.0]
[1688187331408,23.448,18.04,18.03,23.46]
[1688187331715,23.448,18.04,18.028,23.462]
[1688187331898,23.453,18.036,18.028,23.462]
[1688187332211,23.453,18.036,18.019,90.6062]
[1688187332418,23.453,18.036,18.02,20.0]
[1688187332609,55.0,18.035,18.02,20.0]
[1688187332800,78.454,18.035,18.024,23.468]
[1688187332999,20.0,18.039,18.024,23.468]
[1688187333309,1268.32545003,18.068,18.024,23.468]
[1688187333310,60.352,18.044,18.024,23.468]
[1688187333516,23.445,18.042,18.025,75.0]
[1688187333701,23.445,18.042,18.03,23.46]
[1688187334414,23.445,18.042,18.03,115.6719]
[1688187334916,55.0,18.041,18.03,115.6719]
[1688187335508,78.447,18.041,18.03,115.6719]
[1688187336616,107.42479726,18.041,18.03,115.6719]
[1688187337013,107.42479726,18.041,18.03,23.46]
[1688187337208,83.97779726,18.041,18.03,23.46]
[1688187337517,51.24938362,18.044,18.03,23.46]
[1688187337821,27.80738362,18.044,18.03,23.46]
[1688187338034,458.82,18.054,18.034,194.011]
[1688187338204,23.434,18.051,18.034,194.011]
[1688187338404,43.434,18.05,18.04,23.446]
[1688187338810,28.969214,18.053,18.04,23.446]
[1688187339016,27.78625961,18.054,18.04,23.446]
[1688187339321,60.31,18.057,18.04,23.446]
[1688187339818,23.43,18.054,18.04,23.446]
[1688187340023,23.43,18.054,18.041,55.0]
[1688187340214,23.43,18.054,18.044,23.441]
[1688187341207,23.43,18.054,18.039,155.4984]
[1688187341527,55.0,18.053,18.04,20.0]
[1688187341718,23.434,18.051,18.041,23.445]
[1688187342525,55.0,18.05,18.041,23.445]
[1688187342811,23.437,18.049,18.041,23.445]
[1688187343019,55.0,18.05,18.041,23.445]
[1688187343221,23.431,18.053,18.041,23.445]
[1688187343420,89.26680322,18.058,18.041,23.445]
[1688187343616,23.445,18.059,18.041,23.445]
[1688187343804,60.296,18.061,18.041,23.445]
[1688187344120,37.69322967,18.06,18.041,23.445]
[1688187344825,23.426,18.057,18.041,23.445]
[1688187345026,55.0,18.056,18.041,23.445]
[1688187345210,23.428,18.055,18.041,23.445]
[1688187346115,55.0,18.056,18.041,23.445]
[1688187346320,78.427,18.056,18.042,55.0]
[1688187346606,78.427,18.056,18.046,23.439]
[1688187347220,23.425,18.058,18.046,23.439]
[1688187347413,284.17149401,18.113,18.046,23.439]
[1688187347414,109.975,18.068,18.047,75.0]
[1688187347724,23.415,18.066,18.053,23.43]
[1688187347932,23.412,18.068,18.053,23.43]
[1688187348221,27.40964949,18.068,18.053,23.43]
[1688187348427,60.262,18.071,18.053,23.43]
[1688187348613,36.37548341,18.07,18.053,23.43]
[1688187349427,16.37548341,18.065,18.051,23.432]
[1688187349614,23.42,18.061,18.051,23.432]
[1688187349816,78.422,18.06,18.051,23.432]
[1688187350910,55.0,18.06,18.051,23.432]
[1688187351607,14.18572703,18.066,18.051,23.432]
[1688187351816,78.415,18.065,18.051,23.432]
[1688187354827,55.0,18.065,18.051,23.432]
[1688187355027,55.0,18.066,18.051,23.432]
[1688187355231,23.411,18.069,18.052,55.0]
[1688187355526,14.29393956,18.068,18.057,83.734]
[1688187355828,55.0,18.073,18.057,83.734]
[1688187356134,23.402,18.075,18.064,23.416]
[1688187358624,55.0,18.074,18.064,23.416]
[1688187359742,23.402,18.076,18.064,23.416]
[1688187359918,55.0,18.075,18.064,23.416]
[1688187360923,78.403,18.075,18.064,23.416]
[1688187364331,27.41149352,18.078,18.064,23.416]
[1688187364538,401.5,18.089,18.064,23.416]
[1688187364539,23.398,18.079,18.064,23.416]
[1688187365438,23.398,18.079,18.069,23.41]
[1688187366937,23.398,18.079,18.065,23.414]
[1688187367143,11.4206381,18.078,18.065,23.414]
[1688187367328,23.403,18.075,18.065,23.414]
[1688187368142,55.0,18.074,18.061,23.419]
[1688187368332,23.408,18.071,18.061,23.419]
[1688187370344,55.0,18.074,18.061,23.419]
[1688187370550,27.4631919,18.079,18.061,23.419]
[1688187370738,70.46172932,18.078,18.061,23.419]
[1688187370938,23.4,18.077,18.061,23.419]
[1688187371139,15.46172932,18.076,18.061,23.419]
[1688187371439,23.406,18.072,18.061,23.419]
[1688187371829,12.08978931,18.075,18.061,23.419]
[1688187372447,60.247,18.076,18.061,23.419]
[1688187372737,11.40496523,18.075,18.061,23.419]
[1688187372945,23.405,18.073,18.061,23.419]
[1688187373628,55.0,18.072,18.061,23.419]
[1688187374042,78.406,18.072,18.061,23.419]
[1688187374729,78.406,18.072,18.059,23.422]
[1688187374942,32.2478601,18.071,18.05,60.331]
[1688187375148,23.415,18.065,18.054,23.429]
[1688187375625,23.418,18.063,18.054,23.429]
[1688187376739,55.0,18.064,18.054,23.429]
[1688187377948,78.417,18.064,18.054,23.429]
[1688187379036,78.417,18.064,18.052,60.322]
[1688187379037,13.14973441,18.063,18.049,118.0609]
[1688187379241,23.423,18.06,18.052,23.431]
[1688187379433,55.0,18.064,18.052,23.431]
[1688187379634,19.52074408,18.064,18.052,23.431]
[1688187379838,55.0,18.063,18.052,23.431]
[1688187380035,19.52074408,18.062,18.052,23.431]
[1688187380235,23.421,18.061,18.052,23.431]
[1688187380448,78.419,18.063,18.052,23.431]
[1688187380743,37.31093969,18.062,18.052,23.431]
[1688187380950,23.419,18.062,18.052,23.431]
[1688187381753,60.268,18.07,18.052,23.431]
[1688187381953,101.78609021,18.069,18.052,23.431]
[1688187382155,46.78609021,18.069,18.052,23.431]
[1688187382351,46.78609021,18.069,18.053,55.0]
[1688187382651,50.19609021,18.069,18.057,23.424]
[1688187384057,50.19609021,18.069,18.055,23.427]
[1688187384938,23.416,18.065,18.055,23.427]
[1688187385138,23.418,18.063,18.055,23.427]
[1688187386039,78.419,18.062,18.055,23.427]
[1688187386440,23.419,18.062,18.055,23.427]
[1688187386853,12.88858209,18.067,18.055,23.427]
[1688187387055,78.415,18.066,18.055,23.427]
[1688187387248,13.11469663,18.065,18.055,23.427]
[1688187387453,23.415,18.066,18.055,23.427]
[1688187393761,12.88081949,18.065,18.055,23.427]
[1688187393965,23.417,18.064,18.055,23.427]
[1688187396163,23.417,18.064,18.053,23.43]
[1688187396366,55.0,18.063,18.049,94.6259]
[1688187396663,23.421,18.061,18.053,23.43]
[1688187398567,55.0,18.06,18.053,23.43]
[1688187398755,78.422,18.06,18.053,23.43]
[1688187403253,55.0,18.06,18.053,23.43]
[1688187404571,23.42,18.061,18.053,23.43]
[1688187405068,55.0,18.06,18.053,23.43]
[1688187405658,78.422,18.06,18.049,94.6259]
[1688187405853,78.422,18.06,18.05,20.0]
[1688187406058,78.422,18.06,18.05,43.434]
[1688187406655,78.422,18.06,18.05,20.0]
[1688187406854,78.422,18.06,18.05,43.434]
[1688187408268,55.0,18.06,18.05,43.434]
[1688187409963,20.0,18.059,18.05,23.434]
[1688187410159,55.0,18.058,18.05,23.434]
[1688187410961,20.0,18.059,18.05,23.434]
[1688187411162,20.0,18.06,18.05,23.434]
[1688187413294,43.421,18.06,18.05,23.434]
[1688187413776,78.423,18.059,18.05,23.434]
[1688187414884,20.0,18.06,18.05,23.434]
[1688187415378,13.75334357,18.06,18.05,23.434]
[1688187415595,14.97405776,18.062,18.05,23.434]
[1688187415760,23.419,18.062,18.05,23.434]
[1688187416781,55.0,18.061,18.05,23.434]
[1688187416963,78.421,18.061,18.05,23.434]
[1688187418064,55.0,18.061,18.05,23.434]
[1688187418282,55.0,18.062,18.05,23.434]
[1688187418484,16.49469826,18.061,18.05,23.434]
[1688187420679,40.55928954,18.063,18.05,23.434]
[1688187421479,55.0,18.062,18.05,23.434]
[1688187421670,23.423,18.059,18.05,23.434]
[1688187423282,55.0,18.062,18.05,23.434]
[1688187423283,23.421,18.061,18.05,23.434]
[1688187423465,55.0,18.06,18.05,23.434]
[1688187424368,78.422,18.06,18.05,23.434]
[1688187426579,14.83817542,18.059,18.05,23.434]
[1688187426884,78.425,18.058,18.05,23.434]
[1688187432473,23.425,18.058,18.05,23.434]
[1688187433187,23.423,18.06,18.05,23.434]
[1688187433386,55.0,18.059,18.05,23.434]
[1688187433586,78.423,18.059,18.05,23.434]
[1688187435879,78.423,18.059,18.048,23.436]
[1688187436077,16.38455941,18.058,18.042,153.8521]
[1688187436370,16.53946023,18.053,18.042,116.9381]
[1688187436575,23.432,18.052,18.042,116.9381]
[1688187437676,23.43,18.054,18.042,116.9381]
[1688187440294,23.428,18.055,18.042,116.9381]
[1688187440992,18.89217014,18.056,18.042,127.77529922]
[1688187441171,26.78609021,18.061,18.042,127.77529922]
[1688187441374,23.426,18.057,18.048,23.437]
[1688187443792,23.426,18.057,18.047,23.438]
[1688187447788,23.426,18.057,18.046,23.44]
[1688187449583,14.67521935,18.056,18.043,10.83719922]
[1688187449790,23.432,18.053,18.043,23.442]
[1688187451976,60.302,18.059,18.044,55.0]
[1688187452187,23.426,18.057,18.049,23.435]
[1688187452894,23.426,18.057,18.044,115.349]
[1688187452895,23.426,18.057,18.047,23.437]
[1688187454486,23.426,18.057,18.048,55.0]
[1688187454692,23.421,18.06,18.049,20.0]
[1688187454901,23.42,18.062,18.051,23.432]
[1688187464497,55.0,18.061,18.051,23.432]
[1688187464702,23.424,18.059,18.051,23.432]
[1688187465698,20.924,18.059,18.051,23.432]
[1688187465897,23.421,18.061,18.051,23.432]
[1688187474008,23.418,18.063,18.051,23.432]
[1688187476900,55.0,18.062,18.051,23.432]
[1688187477212,23.422,18.06,18.051,23.432]
[1688187478111,55.0,18.062,18.049,23.435]
[1688187478112,23.426,18.057,18.049,23.435]
[1688187478307,23.426,18.057,18.05,20.0]
[1688187478508,55.0,18.056,18.041,60.361]
[1688187478693,23.432,18.053,18.044,23.441]
[1688187478898,23.432,18.053,18.04,92.8556]
[1688187479099,23.436,18.049,18.038,71.20719922]
[1688187479307,23.436,18.049,18.038,60.37]
[1688187479511,23.434,18.051,18.04,23.446]
[1688187481900,55.0,18.052,18.04,23.446]
[1688187482100,43.97992198,18.052,18.035,60.381]
[1688187482294,82.55838795,18.053,18.033,1.71389701]
[1688187482295,23.441,18.046,18.033,1.71389701]
[1688187482508,55.0,18.045,18.033,1.71389701]
[1688187482714,55.0,18.045,18.036,23.452]
[1688187484616,78.442,18.045,18.036,23.452]
[1688187485230,55.0,18.05,18.036,23.452]
[1688187485522,38.77820003,18.049,18.036,23.452]
[1688187485722,20.0,18.049,18.036,23.452]
[1688187486020,20.56794382,18.051,18.037,56.71389701]
[1688187486223,20.0,18.05,18.037,56.71389701]
[1688187486425,20.0,18.05,18.041,23.445]
[1688187486599,23.435,18.05,18.041,23.445]
[1688187486806,20.0,18.049,18.041,23.445]
[1688187487012,23.438,18.048,18.039,23.447]
[1688187490628,20.0,18.049,18.03,23.438]
[1688187490629,23.443,18.044,18.03,60.396]
[1688187490825,23.443,18.044,18.027,60.407]
[1688187490826,23.448,18.04,18.027,60.407]
[1688187491028,23.448,18.04,18.008,3.0]
[1688187491029,75.20519954,18.039,18.024,90.0779]
[1688187491207,23.454,18.036,18.026,23.465]
[1688187493513,23.451,18.038,18.026,23.465]
[1688187493720,22.07170661,18.04,18.026,23.465]
[1688187493926,75.0,18.039,18.026,23.465]
[1688187494926,23.454,18.036,18.026,23.465]
[1688187495125,55.0,18.035,18.024,113.5449]
[1688187495327,23.458,18.032,18.024,90.0779]
[1688187495644,23.458,18.032,18.024,113.5459]
[1688187496545,23.458,18.032,18.024,90.0779]
[1688187496837,23.458,18.032,18.024,113.5459]
[1688187497536,23.456,18.034,18.024,113.5459]
[1688187498627,23.456,18.034,18.024,23.468]
[1688187498831,55.0,18.033,18.024,23.468]
[1688187499136,23.457,18.033,18.024,23.468]
[1688187499315,23.455,18.035,18.024,23.468]
[1688187500244,55.0,18.034,18.024,23.468]
[1688187500526,23.459,18.032,18.024,23.468]
[1688187500728,23.459,18.032,18.001,74.79]
[1688187501028,23.466,18.026,18.016,23.477]
[1688187501629,55.0,18.025,18.016,23.477]
[1688187501827,23.468,18.024,18.016,23.477]
[1688187502033,60.4,18.03,18.016,23.477]
[1688187502332,75.0,18.029,18.016,23.477]
[1688187502733,23.466,18.027,18.016,23.477]
[1688187503243,55.0,18.026,18.016,23.477]
[1688187503420,23.469,18.024,18.016,23.477]
[1688187503827,20.0,18.029,18.016,23.477]
[1688187504133,55.0,18.028,18.016,23.477]
[1688187504319,55.0,18.028,18.013,96.6598]
[1688187504527,23.467,18.025,18.014,23.481]
[1688187504723,20.0,18.031,18.014,23.481]
[1688187504923,60.396,18.031,18.015,2.21389701]
[1688187505121,23.464,18.028,18.019,23.474]
[1688187505631,110.182,18.034,18.019,23.474]
[1688187505632,401.5,18.049,18.019,23.474]
[1688187505833,23.459,18.032,18.02,75.0]
[1688187506019,23.459,18.032,18.024,23.467]
[1688187506224,23.457,18.033,18.024,23.467]
[1688187506432,28.17485347,18.04,18.024,23.467]
[1688187506637,23.454,18.035,18.025,55.0]
[1688187506834,60.362,18.041,18.028,23.463]
[1688187507225,20.0,18.04,18.028,23.463]
[1688187507422,23.451,18.038,18.021,93.5079]
[1688187507640,23.451,18.038,18.022,1.71389701]
[1688187507830,21.0682088,18.037,18.022,1.71389701]
[1688187508030,23.457,18.033,18.023,23.469]
[1688187509033,23.455,18.035,18.023,23.469]
[1688187509429,130.148,18.04,18.023,23.469]
[1688187509637,23.451,18.038,18.024,55.0]
[1688187509943,23.448,18.04,18.028,23.463]
[1688187510439,23.448,18.04,18.029,20.0]
[1688187511144,55.0,18.039,18.029,43.461]
[1688187511448,23.452,18.037,18.029,43.461]
[1688187512350,23.452,18.037,18.027,23.464]
[1688187512649,23.452,18.037,18.025,23.466]
[1688187513847,23.45,18.039,18.026,55.0]
[1688187514146,23.45,18.039,18.03,23.459]
[1688187514545,27.92904149,18.046,18.03,23.459]
[1688187514855,398.5,18.059,18.026,165.225]
[1688187514856,23.442,18.045,18.037,23.451]
[1688187516445,23.442,18.045,18.033,99.3968]
[1688187516648,23.442,18.045,18.033,122.8518]
[1688187517043,23.442,18.045,18.033,99.3968]
[1688187517442,23.442,18.045,18.033,122.8528]
[1688187520345,55.0,18.044,18.033,122.8528]
[1688187520545,23.446,18.041,18.033,122.8528]
[1688187521555,21.75952803,18.049,18.034,0.9533962]
[1688187521757,23.441,18.045,18.038,23.45]
[1688187521954,23.441,18.045,18.034,55.0]
[1688187522161,23.441,18.045,18.033,99.3968]
[1688187522755,23.441,18.045,18.036,23.452]
[1688187522950,23.441,18.045,18.033,99.3968]
[1688187523155,23.441,18.045,18.034,23.454]
[1688187523850,55.0,18.044,18.033,122.8528]
[1688187524056,23.446,18.041,18.025,170.647]
[1688187524256,55.0,18.04,18.025,60.414]
[1688187524466,23.453,18.036,18.022,60.425]
[1688187525149,23.453,18.036,18.022,90.425]
[1688187525459,23.453,18.036,18.023,92.6836]
[1688187525776,23.453,18.036,18.026,23.465]
[1688187526862,23.453,18.036,18.024,23.467]
[1688187527075,23.459,18.032,18.023,92.6836]
[1688187527242,23.459,18.032,17.993,618.92852926]
[1688187527567,210.54948212,18.049,17.993,618.92852926]
[1688187527568,23.463,18.028,18.02,23.473]
[1688187528063,60.391,18.033,18.02,23.473]
[1688187528370,23.46,18.031,18.02,23.473]
[1688187530266,23.46,18.031,18.018,23.475]
[1688187530568,23.465,18.027,18.019,43.475]
[1688187531468,55.0,18.03,18.019,43.475]
[1688187531673,23.46,18.031,18.019,43.475]
[1688187531853,23.459,18.032,18.02,55.0]
[1688187532054,60.375,18.038,18.023,23.469]
[1688187532364,75.09126278,18.037,18.023,23.469]
[1688187532569,55.0,18.037,18.023,23.469]
[1688187532765,23.457,18.033,18.023,23.469]
[1688187534054,60.375,18.038,18.023,23.469]
[1688187534249,23.45,18.039,18.024,55.0]
[1688187534455,23.45,18.039,18.029,23.461]
[1688187535361,83.819,18.039,18.027,23.463]
[1688187537072,55.0,18.038,18.025,23.466]
[1688187537269,23.455,18.035,18.025,23.466]
[1688187538772,23.455,18.035,18.023,23.468]
[1688187538963,55.0,18.034,18.021,23.471]
[1688187539173,23.46,18.031,18.019,43.474]
[1688187539467,23.465,18.027,18.019,43.474]
[1688187540772,23.463,18.028,18.019,43.474]
[1688187541365,78.462,18.03,18.019,43.474]
[1688187541571,23.462,18.03,18.019,43.474]
[1688187545065,23.459,18.031,18.019,43.474]
[1688187549561,23.459,18.031,18.013,55.0]
[1688187549562,23.464,18.028,18.014,60.451]
[1688187549767,23.464,18.028,18.014,99.5662]
[1688187549965,23.468,18.025,18.017,23.477]
[1688187551579,78.465,18.027,18.017,23.477]
[1688187556703,23.465,18.027,18.017,23.477]
[1688187557202,23.465,18.027,18.014,99.5662]
[1688187557395,23.465,18.027,18.012,23.483]
[1688187558097,55.0,18.026,18.012,23.483]
[1688187558302,23.471,18.022,18.012,23.483]
[1688187559195,23.471,18.022,18.011,95.3259]
[1688187559400,55.0,18.021,18.011,95.3259]
[1688187559610,23.476,18.018,18.004,23.493]
[1688187560095,23.482,18.014,18.004,23.493]
[1688187561891,60.437,18.019,18.004,23.493]
[1688187562093,23.477,18.018,18.004,23.493]
[1688187563389,55.0,18.017,18.004,23.493]
[1688187563590,23.479,18.016,18.004,23.493]
[1688187570409,27.93429298,18.018,18.004,23.493]
[1688187570601,23.466,18.027,18.013,23.482]
[1688187571409,23.466,18.027,18.013,119.1766]
[1688187574000,23.466,18.027,18.014,55.0]
[1688187574312,23.464,18.028,18.017,23.476]
[1688187576407,23.464,18.028,18.013,95.6946]
[1688187576602,55.0,18.027,18.013,119.1766]
[1688187576910,23.47,18.023,18.013,119.1766]
[1688187578403,23.468,18.025,18.013,119.1766]
[1688187578709,23.468,18.025,18.014,55.0]
[1688187578920,23.468,18.025,18.017,23.477]
[1688187581721,23.468,18.025,18.015,23.479]
[1688187583623,23.468,18.025,18.014,55.0]
[1688187583624,23.468,18.025,18.013,95.6946]
[1688187583824,23.468,18.025,18.008,60.47]
[1688187584126,52.47236868,18.025,18.009,110.176]
[1688187584819,52.47236868,18.025,18.011,23.484]
[1688187590729,23.468,18.025,18.011,23.484]
[1688187596037,28.39839061,18.049,18.011,23.484]
[1688187596038,170.546,18.037,18.012,75.0]
[1688187596339,23.459,18.031,18.019,23.474]
[1688187596521,23.459,18.031,18.023,23.469]
[1688187598230,170.546,18.037,18.023,23.469]
[1688187598439,23.458,18.033,18.023,23.469]
[1688187600427,23.458,18.033,18.021,23.471]
[1688187600630,55.0,18.032,18.021,23.471]
[1688187600940,78.459,18.032,18.021,23.471]
[1688187601120,23.459,18.032,18.021,23.471]
[1688187601441,23.454,18.035,18.021,133.731]
[1688187601636,23.454,18.035,18.022,55.0]
[1688187601831,23.453,18.037,18.025,23.466]
[1688187602140,23.451,18.037,18.025,23.466]
[1688187603336,23.448,18.04,18.025,23.466]
[1688187603540,20.0,18.039,18.03,23.46]
[1688187603926,43.449,18.039,18.028,23.462]
[1688187604134,43.449,18.039,18.026,23.465]
[1688187604926,55.0,18.038,18.026,23.465]
[1688187605140,23.452,18.037,18.026,23.465]
[1688187605342,20.0,18.039,18.026,23.465]
[1688187605533,43.444,18.043,18.027,55.0]
[1688187605734,23.445,18.042,18.031,23.458]
[1688187606939,23.445,18.042,18.029,23.461]
[1688187607140,55.0,18.041,18.03,20.0]
[1688187607443,23.45,18.038,18.027,23.464]
[1688187607643,23.455,18.034,18.027,23.464]
[1688187608027,23.455,18.034,18.024,94.4973]
[1688187608232,23.455,18.034,18.023,60.422]
[1688187608735,23.455,18.034,18.024,93.0615]
[1688187609042,23.455,18.034,18.024,46.99478518]
[1688187609247,23.455,18.034,18.024,67.82259652]
[1688187609543,23.455,18.034,18.024,23.467]
[1688187610746,23.453,18.036,18.024,23.467]
[1688187610946,9.35622037,18.04,18.024,23.467]